Cogmind - Beta 13 @@@ ROGUE MODE // 2024.04.07 @ 17:41:54 Player: DCS-TF2 Result: Destroyed self with Rocket Launcher Performance ------------- Evolutions (0) 0 Regions Visited (2) 400 Robots Destroyed (19) 95 Value Destroyed (505) 505 Prototype IDs (0) 0 Alien Tech Used (0) 0 Bonus (0) 0 TOTAL SCORE: 1000 Bonus ------- None Cogmind --------- Core Integrity 0/250 Matter 167/300 Energy 249/250 System Corruption 1% Temperature Cool (0) Movement Hovering (120) Ox1 Location -10/Mines Parts ------- > --- POWER (1) -------- Ion Engine > --- PROPULSION (2) --- Hover Unit > --- UTILITY (2) ------ Propulsion Shielding Hacking Suite > --- WEAPON (2) ------- Assault Rifle Rocket Launcher > --- INVENTORY (5) ---- Light Ion Engine Hover Unit Sensor Array Assault Rifle Grenade Launcher Peak State ------------ > --- POWER ------------ Light Ion Engine > --- PROPULSION ------- Hover Unit Hover Unit > --- UTILITY ---------- Propulsion Shielding Hacking Suite > --- WEAPON ----------- Assault Rifle Assault Rifle > --- INVENTORY -------- Ion Engine Light Ion Engine Hover Unit Sensor Array Grenade Launcher [Rating: 9] Favorites ----------- Power Light Ion Engine Engine Light Ion Engine Propulsion Wheel Wheel Wheel Hover Unit Hover Unit Utility Small Storage Unit Device Sensor Array Storage Small Storage Unit Processor Targeting Computer Hackware Hacking Suite Protection Propulsion Shielding Weapon Small Laser Energy Gun Small Laser Ballistic Gun Assault Rifle Launcher Rocket Launcher Build | -11 -10 -10 ------- Run | Yrd Mat Min Slots Evolved . | . . . Power . | . . . Propulsion . | . . . Utility . | . . . Weapon . | . . . Parts Attached 20 | 6 13 1 Power 2 | 1 1 . Engine 2 | 1 1 . Core . | . . . Reactor . | . . . Propulsion 5 | 2 3 . Treads . | . . . Leg . | . . . Wheel 2 | 2 . . Hover 3 | . 3 . Flight . | . . . Utility 7 | 1 6 . Device 3 | . 3 . Storage 1 | 1 . . Processor 1 | . 1 . Hackware 1 | . 1 . Protection 1 | . 1 . Artifact . | . . . Weapon 6 | 2 3 1 Energy Gun 2 | 2 . . Energy Cannon . | . . . Ballistic Gun 3 | . 3 . Ballistic Cannon . | . . . Launcher 1 | . . 1 Special Weapon . | . . . Impact Weapon . | . . . Slashing Weapon . | . . . Piercing Weapon . | . . . Special Melee Weapon . | . . . Unidentified Prototypes . | . . . Parts Lost 4 | . 4 . Power . | . . . Propulsion 2 | . 2 . Utility 1 | . 1 . Weapon 1 | . 1 . Highest Loss Streak 1 | . 1 . To Critical Strikes . | . . . Average Slot Usage (%) 83 | . 83 85 Engine 14 | . 14 14 Wheel 5 | . 6 . Hover 11 | . 10 14 Device 14 | . 15 . Storage 2 | . 2 . Hackware 2 | . 1 14 Protection 5 | . 4 14 Energy Gun 9 | . 10 . Ballistic Gun 17 | . 16 26 Naked Turns . | . . . Heaviest Build 12 | 11 12 10 Greatest Support 20 | 20 20 6 Greatest Overweight (x) 1 | . 1 1 Average Overweight (x) . | . . 1 Largest Inventory Capacity 8 | 8 8 5 Average Capacity 6 | 7 5 5 Most Carried 5 | 3 5 5 Average Carried 2 | . 3 4 Final Capacity 8 | 8 5 5 Final Carried 5 | 1 4 5 Class Distribution -------------------- 97% | Mutant Dominant Class ---------------- Mutant | -10/Materials Mutant | -10/Mines Resources | -11 -10 -10 ----------- Run | Yrd Mat Min Matter Collected 466 | 162 304 . Remotely . | . . . Salvage Created 581 | . 566 15 Parts 43 | . 42 1 Haulers Intercepted . | . . . Recyclers Shooed . | . . . Parts Field Recycled . | . . . Retrieved Matter . | . . . Parts Self-Destructed . | . . . Prevented . | . . . Kills | -11 -10 -10 ------- Run | Yrd Mat Min Combat Hostiles Destroyed 12 | . 11 1 Guns 11 | . 11 . AOE 1 | . . 1 Classes Destroyed 5 | . 5 . Worker 2 | . 2 . Builder 1 | . 1 . Operator 1 | . 1 . Watcher 3 | . 3 . Grunt 12 | . 11 1 Best Kill Streak 5 | . 5 1 Combat Bots Only 3 | . 3 1 Max Kills in Single Turn 1 | . 1 1 Gunslinging . | . . . Exploded 1 | . . 1 Melee . | . . . Uniques/NPCs Destroyed . | . . . Combat | -11 -10 -10 -------- Run | Yrd Mat Min Hostile Shots Fired 64 | . 63 1 Missed 16 | . 15 1 Damage Taken 695 | . 659 36 Core 252 | . 216 36 Absorbed by Shields . | . . . Redirected to Shielding 12 | . 12 . Regen/Repaired (Parts) 25 | . 25 . Core Remaining (%) 100 | 100 . . Volleys Fired 64 | . 61 3 Largest 2 | . 2 2 Hottest 90 | . 90 53 Shots Fired 125 | . 119 6 Gun 122 | . 119 3 Cannon . | . . . Launcher 3 | . . 3 Special . | . . . Kinetic 62 | . 59 3 Thermal 60 | . 60 . Explosive 3 | . . 3 Electromagnetic . | . . . Robot Hit Streak 10 | . 10 3 Robot Miss Streak 6 | . 6 . Penetration Max . | . . . Secondary Targets 2 | . 2 . Max Gunslinging Chain 1 | . 1 . Shots Hit Robots 63 | . 61 2 Core Hits 38 | . 35 3 Critical Kills . | . . . Critical Parts Destroyed . | . . . Critical Strikes 1 | . 1 . Burn 1 | . 1 . Melee Attacks . | . . . Impact . | . . . Slashing . | . . . Piercing . | . . . Sneak Attacks . | . . . Combat Hostiles . | . . . Follow-up Attacks . | . . . Damage Inflicted 1018 | . 840 178 Guns 847 | . 837 10 Cannons . | . . . Explosions 168 | . . 168 Melee . | . . . Ramming 3 | . 3 . Kinetic 365 | . 355 10 Thermal 482 | . 482 . Explosive 168 | . . 168 Electromagnetic . | . . . Impact . | . . . Slashing . | . . . Piercing . | . . . Highest Corruption 1 | . 1 1 Average Corruption 1 | . 1 1 Corruption Purged . | . . . Corruption Blocked . | . . . Effects 4 | . 3 1 Message Errors 1 | . 1 . Heat Flow Errors 1 | . 1 . Energy Discharges 1 | . . 1 Weapon Failures 1 | . 1 . Overload Shots . | . . . Overflow Damage . | . . . Projectiles . | . . . Explosions . | . . . Melee . | . . . Knockbacks . | . . . Impact . | . . . Kinetic . | . . . Secondary . | . . . Self-Inflicted Damage 37 | . 1 36 Shots 1 | . . 1 Rammed 3 | . 3 . Targets Rammed 3 | . 3 . Kicked . | . . . Crushed . | . . . Highest Temperature 340 | . 340 . Average Temperature 117 | . 117 . Received Heat Transfer 360 | . 360 . Siege Activations . | . . . Robots Corrupted . | . . . Combat Hostiles . | . . . Parts Fried . | . . . Impact Corruptions . | . . . Robots Melted . | . . . Combat Hostiles . | . . . Parts Melted . | . . . Heat Transferred 1362 | . 1362 . Parts Sabotaged . | . . . Parts Stolen . | . . . Parts Stripped . | . . . Power Chain Reactions . | . . . Alert | -11 -10 -10 ------- Run | Yrd Mat Min Peak Influence 247 | . 247 55 Initial 45 | . . 45 Average 48 | . 111 45 Maximum Alert Level 1 | . 1 . Low Security (%) 95 | 100 88 100 Level 1 4 | . 11 . Level 2 . | . . . Level 3 . | . . . Level 4 . | . . . Level 5 . | . . . High Security . | . . . Max Security . | . . . Squads Dispatched 3 | . 3 . Investigation . | . . . Extermination . | . . . Reinforcement 3 | . 3 . Assault . | . . . Garrison . | . . . Intercept . | . . . Searches Triggered . | . . . Construction Impeded . | . . . Haulers Reinforced . | . . . Active Scanning Responses . | . . . Cargo Convoy Interrupts . | . . . Stealth | -11 -10 -10 --------- Run | Yrd Mat Min Distress Signals 3 | . 3 . Communications Jammed . | . . . Distress Signals . | . . . Times Spotted 29 | . 27 2 Peak Tracking Total 6 | . 6 2 Tactical Retreats 3 | . 3 . Traps | -11 -10 -10 ------- Run | Yrd Mat Min Traps Triggered 2 | . 2 . Indirectly . | . . . Trap Hack Attempts . | . . . Triggered . | . . . Disarmed . | . . . Reprogrammed . | . . . Reused . | . . . Traps Extracted . | . . . Installed . | . . . Triggered . | . . . Machines | -11 -10 -10 ---------- Run | Yrd Mat Min Machines Disabled . | . . . Max in Single Turn . | . . . Machines Repaired . | . . . Machines Dismantled . | . . . Machines Sabotaged . | . . . Overloaded Fab Kills . | . . . Hacking | -11 -10 -10 --------- Run | Yrd Mat Min Machines Accessed 1 | . 1 . Terminals . | . . . Fabricators . | . . . Repair Stations 1 | . 1 . Recycling Units . | . . . Scanalyzers . | . . . Garrison Access . | . . . Total Hacks 3 | . 3 . Successful 2 | . 2 . Failed 1 | . 1 . Catastrophic . | . . . Database Lockouts . | . . . Manual . | . . . Terminals . | . . . Fabricators . | . . . Repair Stations 3 | . 3 . Recycling Units . | . . . Scanalyzers . | . . . Garrison Access . | . . . Terminal Hacks . | . . . Fabricator Hacks . | . . . Repair Station Hacks 2 | . 2 . Scan Component 1 | . 1 . Repair 1 | . 1 . Recycling Unit Hacks . | . . . Scanalyzer . | . . . Garrison Access Hacks . | . . . Unauthorized Hacks . | . . . Terminals . | . . . Fabricators . | . . . Repair Stations . | . . . Recycling Units . | . . . Scanalyzers . | . . . Garrison Access . | . . . Data Cores Recovered . | . . . Used . | . . . Hacking Detections 1 | . 1 . Full Trace Events . | . . . Feedback Events . | . . . Feedback Blocked . | . . . Robot Schematics Acquired . | . . . Robots Built . | . . . Authchips . | . . . Time . | . . . Total Robot Build Rating . | . . . Part Schematics Acquired . | . . . Parts Built . | . . . Authchips . | . . . Time . | . . . Total Part Build Rating . | . . . Parts Repaired 1 | . 1 . Time 26 | . 26 . Parts Recycled . | . . . Recycled Matter . | . . . Retrieved Matter . | . . . Retrieved Components . | . . . Parts Scanalyzed . | . . . Part Schematics Acquired . | . . . Parts Damaged . | . . . Bothacking | -11 -10 -10 ------------ Run | Yrd Mat Min Used RIF Installer . | . . . Robots Hacked . | . . . Non-combat . | . . . Combat . | . . . Robot Hacks Applied . | . . . Relay Couplers Released . | . . . Fabnet Peak Effective % . | . . . Robots Rewired . | . . . Allies Hacked . | . . . Hacks Repelled . | . . . Allies | -11 -10 -10 -------- Run | Yrd Mat Min Total Allies . | . . . Largest Group . | . . . Highest-Rated Group . | . . . Highest-Rated Ally . | . . . Total Orders . | . . . Ally Attacks . | . . . Total Damage . | . . . Kills . | . . . Allies Corrupted . | . . . Allies Melted . | . . . Intel | -11 -10 -10 ------- Run | Yrd Mat Min Robot Analysis Total . | . . . Derelict Logs Recovered . | . . . Drone Launches . | . . . Drone Recoveries . | . . . Exploration | -11 -10 -10 ------------- Run | Yrd Mat Min Turns Passed 2214 | 1202 941 71 Spaces Moved 1099 | 304 747 48 Core 11 | 11 . . Treads . | . . . Legs . | . . . Wheels 583 | 293 290 . Hover 505 | . 457 48 Flight . | . . . Fastest Speed 50 | 50 56 120 Average Speed 88 | 78 89 120 Slowest Speed 120 | 80 120 120 Overloaded Moves . | . . . Propulsion Burnouts . | . . . Robots Hopped . | . . . Cave-ins Triggered . | . . . Exploration Rate (%) 38 | 32 72 10 Regions Visited 2 Branch Regions 1 Pre-discovered Areas . | . . . Known Exits Taken . | . . . Unknown Exits Taken 2 | 1 1 . Scrap Searched . | . . . Spaces Dug . | . . . Terrain Destroyed 31 | . . 31 Melee . | . . . Projectile . | . . . AOE 31 | . . 31 Terrain Rammed . | . . . Walls Destroyed . | . . . Machines Disabled . | . . . Actions | -11 -10 -10 --------- Run | Yrd Mat Min Total 2217 | 1265 895 57 Wait 1005 | 949 52 4 Move 1097 | 303 746 48 Hop . | . . . Pick Up 21 | 7 13 1 Fast Attach 1 | . 1 . Attach 9 | 6 3 . Detach . | . . . Swap 10 | . 9 1 Drop 7 | . 7 . Fire 64 | . 61 3 Melee . | . . . Ram 3 | . 3 . Kick . | . . . Crush . | . . . Escape Stasis . | . . . Rewire . | . . . Trap . | . . . Miscellaneous . | . . . Route ------- -11/Scrapyard -10/Materials (discovered 5 exits: [*Mat x2] / [*Min x2] / [Sub]) -10/Mines History --------- Turn | Location | Event 5 | -11/Scrapyard | Discovered new exit (range 15) 1203 | -11/Scrapyard | Entered Materials 1204 | -10/Materials | Build established: Mutant 1533 | -10/Materials | Core integrity fell below 50% 1575 | -10/Materials | Discovered new exit (range 14) 1658 | -10/Materials | Discovered new exit (range 5) 1855 | -10/Materials | Discovered new exit (range 6) 1868 | -10/Materials | Discovered new exit (range 14) 2032 | -10/Materials | Discovered new exit (range 10) 2067 | -10/Materials | Repaired Hover Unit 2089 | -10/Materials | Core integrity fell below 20% 2144 | -10/Materials | Entered Mines 2151 | -10/Mines | Received a Rocket Launcher from a helpful Derelict 2215 | -10/Mines | Destroyed self with Rocket Launcher Last Messages --------------- GOAL=ESCAPE A derelict emerges from the shadows. XN-OKB(g): "Some of my friends down here think you need a mining laser when you travel the depths." XN-OKB(g): "They are crazy." XN-OKB(g): "Everyone knows a good old rocket launcher goes a long way." XN-OKB(g): "Need to get rid of a swarm? Done. Need a big hole in the wall? Done." XN-OKB(g): "Need a small hole in the wall? Leave that to the mining laser wimps, I say!" XN-OKB(g): "Would you like a rocket launcher? I know I would if I were you, so I'm going to lend you mine." XN-OKB(g) slips back into the shadows. Acquired Rocket Launcher. System corrupted: Energy discharge (-70). The unstable cave ceiling collapses. G-34 Mercenary destroyed. Map ----- +----------------------------------------------------+ | ?????????????????????????????????? | | ?????????????????????????????????? | | ?????????????????????????????????? | | ?????????????????????????????????? | | ?????????????????????????????????? | | ?????????????????????????????????? | | ?????????????????????????????????? | | ?????????????????????????????????? | | ?????????????????????????????????? | | ?????????????????????????????????? | | ?????????????????????????????????? | | ?????????????????????????????????? | | ?????????????????????????????????? | | ?????????????????????????????????? | | ????#####????????????????????????? | | ????# #####????????????????????? | | ????# #????????????????????? | | ????# #????????????????????? | | ???## ##????????????????????? | | ???# ##?????????????????????? | | ???# ##?????????????????????? | | ???# ##????????????????????? | | ???# #????????????????????? | | ??## ??????##????????????? | | ?## g # #????????????? | | ?# @ % #????????????? | | ?# ## #?????????????? | | ?# #####?# #??#?????????????? | | ?# #?????# #????????????????? | | ?# #?????# #????????????????? | | ?## ##?????# #????????????????? | | ??#####??? ???????????????? | | ????????# """ """ ""?????????????? | | ????????# """ """ """ ???????????? | | ????????# """ """ """ ??????????? | | ????????# ???????????? | | ????????# ??????????? | | ????????# ??????????? | | ?????????###T#########???????????? | | ???????????#?????????????????????? | | ?????????????????????????????????? | | | | | | | | | | | | | | | | | | | +----------------------------------------------------+ Best States ------------- Heat Dissipation 25 Energy Generation 10 Energy Capacity 250 Matter Stores 300 Matter Capacity 300 Sight Range 16 Robot Scan Range 14 Terrain Scan Range 14 Terrain Scan Density 10 Propulsion Shielding 33 Evasion (%) 53 Targeting Accuracy 5 Offensive Hacking 10 Item Schematics ----------------- None Robot Schematics ------------------ None Fabricated ------------ Nothing Alien Tech Used ----------------- None Achievements -------------- None Challenges ------------ None Game ------ Seed QuantumReactiveGuard Manual? 0 Play Time 00:23:05 Cumulative 8.9 hours Start 2024.04.07 @ 16:50:49 End 2024.04.07 @ 17:41:54 Sessions 1 Manual Loads 0 Difficulty Rogue Special Mode None Game No. 9 Rogue 9 Adventurer 0 Explorer 0 Win Type - Total 0 Types 0/0/0/0/0/0/0/0/0 Lore% 11 Gallery% 10 Achievement% 100 Wizard Run 0 Options --------- Layout 1 ASCII 0 Keyboard 0 Movement Numpad Keybinds 0 Fullscreen 1 Font 24/Smallcaps Map View 50x35 Zoom Use 0% Tactical HUD 0 Map Filters NONE Filters NONE Steam 1 RUN: 55b58038-5d35-4aa5-bffb-374b6b85caaf